[Event "Gibraltar Challengers B 2019"]
[Site "Caleta"]
[Date "2019.01.27"]
[Round "2"]
[White "Severijnen, Arjon"]
[Black "Villar Reymundo, Juan Antonio"]
[Result "1/2-1/2"]
[ECO "B56"]
[WhiteElo "2120"]
[BlackElo "2237"]
[Annotator "NA"]
[PlyCount "205"]
[EventDate "2019.01.18"]
[EventType "swiss"]
[EventCountry "GGB"]
[SourceTitle "playchess.com"]
[Source "ChessBase"]
[SourceQuality "1"]
[TimeControl "6600+10"]

{[%evp 8,182,15,14,36,0,27,22,32767,32767,32767,32767,32767,32767,41,-48,32767,-42,32767,-31,32767,-35,32767,0,26,-23,32767,32767,32767,32767,32767,32767,3,0,32767,0,0,0,8,0,19,-21,0,32767,15,32767,22,0,0,32767,32767,-94,54,0,11,0,37,5,89,32767,100,32767,55,45,108,138,32767,127,120,32767,474,202,181,110,106,106,102,32767,114,32767,122,81,177,32767,32767,0,32767,32767,32767,32767,32767,32767,182,213,246,316,32767,32767,356,32767,32767,32767,32767,32767,32767,32767,32767,32767,32767,32767,32767,487,450,443,447,32767,32767,32767,32767,32767,427,444,457,32767,32767,32767,32767,32767,32767,32767,32767,32767,32767,32767,445,429,447,485,460,32767,32767,32767,32767,32767,32767,32767,32767,32767,32767,32767,32767,32767,32767,391,370,14,18,16,13,16,16,18,17,14,13,15,16,14,13,16,16,18,14,14,16,15,16]} 1. e4 {[%emt 0:00:00]} c5 {[%emt 0:09:41]} 2. Nf3 {[%emt 0:00:09]} Nc6 {[%emt 0:00:08]} 3. d4 {[%emt 0:00:14]} cxd4 {[%emt 0:00:08]} 4. Nxd4 {[%emt 0:00:06]} Nf6 {[%emt 0:00:05]} 5. Nc3 {[%emt 0:00:09]} d6 {[%emt 0:00:04]} 6. g3 {[%emt 0:00:42]} e5 {[%emt 0:02:52] LiveBook: 86 Games} 7. Nde2 {[%emt 0:00:25]} Be6 {[%emt 0:03:38]} 8. Bg2 {[%emt 0:02:31]} Be7 {[%emt 0:01:18]} 9. O-O {[%emt 0:01:12]} O-O {[%emt 0:01:00]} 10. a4 {[%emt 0:04:30] B56: Classical Sicilian: Unusual Lines} (10. h3 Rc8 11. g4 h6 12. Ng3 a6 13. Nf5 b5 14. Nd5 Bxf5 15. Nxe7+ Qxe7 16. exf5 d5 17. c3 e4 18. Bf4 {0-1 (42) Fontaine,R (2563)-Gupta,A (2610) chess.com INT 2018}) 10... h6 $146 {[%emt 0:05:48]} (10... Nb4 $11) ({Predecessor:} 10... Rc8 11. Nd5 Bxd5 12. exd5 Nb4 13. c3 Na6 14. a5 Nc5 15. h3 b6 {½-½ (44) Hafensteiner,T (1689)-Hennemann,F (1505) Bad Homburg 2015}) 11. h3 {[%emt 0:04:26]} (11. Nd5 $14) 11... Nb4 {[%emt 0:01:05]} 12. b3 {[%emt 0:06:30]} d5 {[%emt 0:17:30]} 13. exd5 {[%emt 0:02:11]} Nbxd5 {[%emt 0:00:58]} 14. Bb2 {[%emt 0:01:40]} Nxc3 {[%emt 0:18:06]} 15. Nxc3 {[%emt 0:02:45]} Qc8 {[%emt 0:01:08]} 16. Kh2 {[%emt 0:06:22]} Bc5 {[%emt 0:01:47]} 17. Ne2 {[%emt 0:23:23]} Rd8 {[%emt 0:12:59]} 18. Qe1 {[%emt 0:01:54]} Bd6 {[%emt 0:01:54]} 19. c4 {[%emt 0:02:37]} Bd7 {[%emt 0:09:37]} 20. Nc3 {[%emt 0:02:36]} Bc6 {[%emt 0:01:41]} 21. Nd5 {[%emt 0:00:48]} Bxd5 {[%emt 0:03:45]} 22. cxd5 {[%emt 0:00:21]} Qf5 {[%emt 0:01:47]} 23. Qe3 {[%emt 0:02:58]} Qg5 {[%emt 0:07:35]} 24. Qe2 {[%emt 0:02:47]} Rd7 {[%emt 0:00:42]} 25. Rac1 {[%emt 0:03:18]} h5 {[%emt 0:00:43]} 26. Rc4 {[%emt 0:01:03]} Re8 {[%emt 0:03:05]} 27. Rd1 {[%emt 0:09:50]} Rde7 {[%emt 0:00:29]} 28. a5 {[%emt 0:02:48]} a6 {[%emt 0:00:15]} 29. Bc3 {[%emt 0:01:31]} (29. Qe3 $11 {remains equal.} Qxe3 30. fxe3) 29... g6 {[%emt 0:01:25]} (29... e4 $17 30. Qe3 Qxe3 31. fxe3 h4) 30. Bb4 {[%emt 0:02:57]} Rd7 {[%emt 0:00:48]} 31. Bc3 {[%emt 0:03:14]} Rde7 {[%emt 0:00:03]} 32. Kg1 {[%emt 0:02:08]} Nd7 {[%emt 0:00:31]} (32... e4 $11) 33. Bd2 {[%emt 0:01:38]} Qf6 {[%emt 0:00:08]} 34. Bb4 {[%emt 0:01:47]} Rd8 {[%emt 0:01:16]} 35. h4 {[%emt 0:00:32]} Bxb4 {[%emt 0:00:30]} 36. Rxb4 {[%emt 0:00:06]} Nc5 $1 $11 {[%emt 0:00:35] and Black has nothing to worry.} 37. Qc4 {[%emt 0:01:49]} (37. Rc1 $18 Nd7 38. Rxb7) 37... Rc7 {[%emt 0:00:15]} 38. Qe2 {[%emt 0:04:36]} Rd6 $2 {[%emt 0:00:21]} 39. Rc1 {[%emt 0:00:46]} (39. Rc4 $142) 39... Ne6 {[%emt 0:00:07]} 40. Re1 {[%emt 0:00:46]} Nd4 {[%emt 0:00:05]} 41. Qxe5 {[%emt 0:01:04]} Qxe5 {[%emt 0:00:20]} 42. Rxe5 {[%emt 0:00:06]} Nb5 {[%emt 0:00:30]} 43. Rc4 {[%emt 0:00:24]} Kf8 {[%emt 0:00:09]} 44. Re1 {[%emt 0:00:59]} Rd8 {[%emt 0:00:04]} (44... Rcd7 $16 {might work better.}) 45. Rec1 {[%emt 0:01:10]} Re7 {[%emt 0:00:05]} 46. Rc8 {[%emt 0:00:21]} ({White should try} 46. Kf1 $14) 46... Re1+ {[%emt 0:00:17]} 47. Kh2 {[%emt 0:00:16]} Ree8 {[%emt 0:00:09]} 48. Rxd8 Rxd8 {[%emt 0:00:01]} 49. d6 {[%emt 0:01:42]} Nxd6 {[%emt 0:00:15]} (49... Rd7 $16 {was called for.}) 50. Rc7 {[%emt 0:00:02]} Rb8 {[%emt 0:00:10]} 51. Rd7 {[%emt 0:00:02]} Nb5 {[%emt 0:00:21]} 52. Bxb7 {[%emt 0:00:11]} Nd4 {[%emt 0:00:10]} 53. Bd5 {[%emt 0:00:15]} Nxb3 {[%emt 0:00:00]} 54. Rxf7+ {[%emt 0:00:08]} Ke8 {[%emt 0:00:04]} 55. Bxb3 {[%emt 0:00:07]} Rxb3 {[%emt 0:00:01]} 56. Rf6 {[%emt 0:00:01]} Ra3 {[%emt 0:00:15]} 57. Rxa6 {[%emt 0:00:03]} Kf7 {[%emt 0:00:03]} 58. Kg2 {[%emt 0:00:04]} Kg7 {[%emt 0:00:04]} 59. Ra8 {[%emt 0:01:15]} Kh7 {[%emt 0:00:42]} 60. a6 {[%emt 0:00:02]} Kg7 {[%emt 0:00:06]} 61. a7 {[%emt 0:00:16]} Kh7 {[%emt 0:00:01]} 62. Kf1 {[%emt 0:00:01]} Ra2 {[%emt 0:00:05]} 63. Ke1 {[%emt 0:00:02]} Kg7 {[%emt 0:00:09]} 64. Kd1 {[%emt 0:00:06]} Kh7 {[%emt 0:00:14]} 65. Kc1 {[%emt 0:00:01]} Kg7 {[%emt 0:00:05]} 66. Kb1 {[%emt 0:00:01]} Ra4 {[%emt 0:00:15]} 67. Kb2 {[%emt 0:00:01]} Kh7 {[%emt 0:00:01]} 68. Kb3 {[%emt 0:00:01]} Ra1 {[%emt 0:00:01]} 69. Kc4 {[%emt 0:00:26]} Kg7 {[%emt 0:00:08]} 70. Kd5 {[%emt 0:00:03]} Rd1+ {[%emt 0:00:07]} 71. Ke5 {[%emt 0:00:34]} Re1+ {[%emt 0:00:27]} 72. Kf4 {[%emt 0:00:22]} Ra1 {[%emt 0:00:02]} 73. Ke3 {[%emt 0:00:48]} Ra3+ {[%emt 0:00:10]} 74. Kd4 {[%emt 0:00:02]} Ra1 {[%emt 0:00:01]} 75. f4 {[%emt 0:00:08]} Rd1+ {[%emt 0:00:08]} 76. Ke3 {[%emt 0:00:02]} Re1+ {[%emt 0:00:02]} 77. Kf2 {[%emt 0:00:03]} Ra1 {[%emt 0:00:01]} 78. f5 {[%emt 0:00:12]} gxf5 {[%emt 0:00:05]} 79. Kf3 {[%emt 0:00:02]} Ra4 {[%emt 0:00:04]} 80. Ke3 {[%emt 0:00:10]} Kh7 {[%emt 0:00:21]} (80... Ra3+ {was necessary.} 81. Kf4 Ra5) 81. Rf8 $2 {[%emt 0:00:06]} (81. Kd3 $18) 81... Rxa7 {[%emt 0:00:06]} 82. Rxf5 {[%emt 0:00:02]} Kg6 {[%emt 0:00:10]} 83. Rg5+ {[%emt 0:00:07]} Kh6 {[%emt 0:00:02]} 84. Rb5 {[%emt 0:00:02]} Ra4 {[%emt 0:00:19]} 85. Rb6+ {[%emt 0:00:17]} Kh7 {[%emt 0:00:07]} 86. Rd6 {[%emt 0:00:02]} Rg4 {[%emt 0:00:17]} 87. Kf3 {[%emt 0:00:15]} Ra4 {[%emt 0:00:22]} 88. Re6 {[%emt 0:00:03]} Rb4 {[%emt 0:00:40]} 89. Re4 {[%emt 0:00:08]} Rb5 $11 {[%emt 0:00:05]} 90. Kf4 {[%emt 0:00:05]} Rb3 {[%emt 0:00:23]} 91. Re3 {[%emt 0:00:10]} Rb8 {[%emt 0:00:15]} 92. Kf5 {[%emt 0:00:35]} Rb5+ {[%emt 0:00:15]} 93. Re5 {[%emt 0:00:18]} Rb3 {[%emt 0:00:03]} 94. Kf4 {[%emt 0:00:21]} Rb4+ {[%emt 0:00:09]} 95. Re4 {[%emt 0:00:41]} Rb3 {[%emt 0:00:05]} 96. Re3 {[%emt 0:00:07]} Rb5 {[%emt 0:00:09]} 97. Re5 {[%emt 0:00:25]} Rb4+ {[%emt 0:00:03]} 98. Kf5 {[%emt 0:00:29]} Rg4 {[%emt 0:00:12]} 99. Re3 {[%emt 0:00:19]} Kh6 {[%emt 0:00:19]} 100. Rd3 {[%emt 0:00:11]} Kh7 {[%emt 0:00:04]} 101. Rd7+ {[%emt 0:00:15]} Kh6 {[%emt 0:00:03]} 102. Rd6+ {[%emt 0:00:05]} Kh7 {[%emt 0:00:03]} 103. Rd7+ {[%emt 0:00:09]} 1/2-1/2

[Event "Gibraltar Challengers B 2019"]
[Site "Caleta"]
[Date "2019.01.27"]
[Round "2"]
[White "Verneuil, Pascal"]
[Black "Longa Yauca, Javier"]
[Result "1-0"]
[ECO "C02"]
[WhiteElo "2114"]
[BlackElo "2226"]
[Annotator "ChessBase"]
[PlyCount "129"]
[EventDate "2019.01.18"]
[EventType "swiss"]
[EventCountry "GGB"]
[SourceTitle "playchess.com"]
[Source "ChessBase"]
[SourceQuality "1"]
[TimeControl "6600+10"]

1. e4 {[%emt 0:00:00]} e6 {[%emt 0:01:49]} 2. d4 {[%emt 0:00:05]} d5 {[%emt 0:00:10]} 3. e5 {[%emt 0:00:39]} c5 {[%emt 0:00:21]} 4. Nf3 {[%emt 0:00:12]} Nc6 {[%emt 0:00:13]} 5. Bd3 {[%emt 0:00:05]} cxd4 {[%emt 0:01:55]} 6. O-O {[%emt 0:00:05]} Nge7 {[%emt 0:03:48]} 7. Bf4 {[%emt 0:00:06]} Ng6 {[%emt 0:00:31]} 8. Bg3 {[%emt 0:00:04]} Qb6 {[%emt 0:01:01]} 9. Nbd2 {[%emt 0:00:08]} Bd7 {[%emt 0:01:18]} 10. c4 {[%emt 0:05:00]} dxc3 {[%emt 0:06:14]} 11. bxc3 {[%emt 0:00:11]} Na5 {[%emt 0:00:17]} 12. Rb1 {[%emt 0:03:55]} Qc7 {[%emt 0:01:04]} 13. Qe2 {[%emt 0:00:10]} Rc8 {[%emt 0:02:42]} 14. Rfc1 {[%emt 0:01:28]} Ba3 {[%emt 0:03:27]} 15. Rc2 {[%emt 0:00:17]} O-O {[%emt 0:00:55]} 16. c4 {[%emt 0:00:08]} Ba4 {[%emt 0:01:04]} 17. Rc3 {[%emt 0:00:14]} Be7 {[%emt 0:06:18]} 18. Nd4 {[%emt 0:08:06]} Rfd8 {[%emt 0:01:57]} 19. c5 {[%emt 0:16:48]} Bxc5 {[%emt 0:12:46]} 20. Qg4 {[%emt 0:01:10]} Nc4 {[%emt 0:21:10]} 21. Bxg6 {[%emt 0:05:58]} hxg6 {[%emt 0:00:26]} 22. N2f3 {[%emt 0:00:06]} Qa5 {[%emt 0:11:29]} 23. Ne2 {[%emt 0:10:27]} Nb6 {[%emt 0:04:18]} 24. h4 {[%emt 0:10:43]} Bb5 {[%emt 0:07:53]} 25. Rxc5 {[%emt 0:02:44]} Rxc5 {[%emt 0:00:17]} 26. Ned4 {[%emt 0:03:45]} Rdc8 {[%emt 0:02:35]} 27. Bf4 {[%emt 0:00:14]} Bd3 {[%emt 0:00:15]} 28. Re1 {[%emt 0:03:00]} Rc4 {[%emt 0:00:49]} 29. Bd2 {[%emt 0:06:58]} Qa4 {[%emt 0:00:10]} 30. Be3 {[%emt 0:02:18]} Nd7 {[%emt 0:00:48]} 31. h5 {[%emt 0:00:47]} gxh5 {[%emt 0:00:37]} 32. Qxh5 {[%emt 0:00:36]} Bg6 {[%emt 0:00:18]} 33. Qg5 {[%emt 0:00:34]} Nf8 {[%emt 0:00:16]} 34. Kh2 {[%emt 0:01:34]} Nh7 {[%emt 0:01:21]} 35. Qe7 {[%emt 0:09:11]} Qb4 {[%emt 0:00:20]} 36. Qh4 {[%emt 0:00:47]} Be4 {[%emt 0:01:11]} 37. Rh1 {[%emt 0:00:07]} Rxd4 {[%emt 0:08:37]} 38. Nxd4 {[%emt 0:01:12]} Rc4 {[%emt 0:01:38]} 39. f3 {[%emt 0:01:24]} Rxd4 {[%emt 0:01:58]} 40. Bxd4 {[%emt 0:00:45]} Qxd4 {[%emt 0:00:02]} 41. Qf4 {[%emt 0:02:44]} Qf2 {[%emt 0:00:27]} 42. Rc1 {[%emt 0:00:54]} Bc2 {[%emt 0:00:51]} 43. Qb4 {[%emt 0:01:01]} d4 {[%emt 0:00:05]} 44. Qc5 {[%emt 0:00:06]} Qh4+ {[%emt 0:00:09]} 45. Kg1 {[%emt 0:00:34]} d3 {[%emt 0:00:02]} 46. Qc8+ {[%emt 0:01:07]} Nf8 {[%emt 0:00:10]} 47. Qc3 {[%emt 0:01:33]} Qf4 {[%emt 0:00:18]} 48. Ra1 {[%emt 0:01:18]} Qe3+ {[%emt 0:00:12]} 49. Kh2 {[%emt 0:00:52]} Ng6 {[%emt 0:00:19]} 50. Qc8+ {[%emt 0:00:28]} Kh7 {[%emt 0:00:05]} 51. Rh1 {[%emt 0:00:11]} Kh6 {[%emt 0:00:39]} 52. Qd8 {[%emt 0:01:29]} Nxe5 {[%emt 0:00:40]} 53. Kg3+ {[%emt 0:03:31]} Kg6 {[%emt 0:00:04]} 54. Qh8 {[%emt 0:00:25]} Qg5+ {[%emt 0:00:02]} 55. Kf2 {[%emt 0:00:06]} Qd2+ {[%emt 0:00:11]} 56. Kg3 {[%emt 0:00:01]} Qg5+ {[%emt 0:00:07]} 57. Kf2 {[%emt 0:00:01]} f6 {[%emt 0:00:29]} 58. Rh7 {[%emt 0:00:31]} Kf7 {[%emt 0:00:15]} 59. Qc8 {[%emt 0:00:05]} Nc6 {[%emt 0:00:01]} 60. Rh8 {[%emt 0:00:12]} Qc5+ {[%emt 0:00:02]} 61. Kf1 {[%emt 0:00:16]} Qe7 {[%emt 0:00:29]} 62. Qg8+ {[%emt 0:00:02]} Kg6 {[%emt 0:00:03]} 63. Qh7+ {[%emt 0:00:16]} Kf7 {[%emt 0:00:00]} 64. Qh5+ {[%emt 0:00:07]} g6 {[%emt 0:00:03]} 65. Qh7# {[%emt 0:00:01]} 1-0

[Event "Gibraltar Challengers B 2019"]
[Site "Caleta"]
[Date "2019.01.27"]
[Round "2"]
[White "Bub, Volker"]
[Black "Abdulraheem Abdulrahman Akint"]
[Result "1/2-1/2"]
[ECO "C54"]
[WhiteElo "2108"]
[BlackElo "2224"]
[Annotator "ChessBase"]
[PlyCount "127"]
[EventDate "2019.01.18"]
[EventType "swiss"]
[EventCountry "GGB"]
[SourceTitle "playchess.com"]
[Source "ChessBase"]
[SourceQuality "1"]
[TimeControl "6600+10"]

1. e4 {[%emt 0:12:26]} e5 {[%emt 0:00:04]} 2. Bc4 {[%emt 0:00:10]} Nc6 {[%emt 0:02:23]} 3. Nf3 {[%emt 0:00:15]} Bc5 {[%emt 0:00:52]} 4. c3 {[%emt 0:00:14]} Nf6 {[%emt 0:01:23]} 5. d3 {[%emt 0:00:06]} d6 {[%emt 0:00:34]} 6. Bb3 {[%emt 0:01:43]} a6 {[%emt 0:00:42]} 7. h3 {[%emt 0:00:13]} h6 {[%emt 0:00:29]} 8. Nbd2 {[%emt 0:00:52]} Ba7 {[%emt 0:03:45]} 9. Nf1 {[%emt 0:00:20]} Nh5 {[%emt 0:06:03]} 10. g3 {[%emt 0:50:52]} O-O {[%emt 0:07:14]} 11. Be3 {[%emt 0:02:34]} Be6 {[%emt 0:02:37]} 12. Bxa7 {[%emt 0:05:27]} Rxa7 {[%emt 0:00:43]} 13. Ne3 {[%emt 0:00:54]} Nf6 {[%emt 0:07:01]} 14. Nh4 {[%emt 0:07:19]} Bxb3 {[%emt 0:09:21]} 15. axb3 {[%emt 0:00:12]} d5 {[%emt 0:00:33]} 16. Qf3 {[%emt 0:01:49]} dxe4 {[%emt 0:00:19]} 17. dxe4 {[%emt 0:00:19]} Qd3 {[%emt 0:01:49]} 18. Nhf5 {[%emt 0:19:13]} Qxe4 {[%emt 0:02:13]} 19. Nxh6+ {[%emt 0:00:06]} gxh6 {[%emt 0:06:12]} 20. Qxf6 {[%emt 0:00:09]} Qxh1+ {[%emt 0:15:51]} 21. Ke2 {[%emt 0:00:10]} Qe4 {[%emt 0:02:06]} 22. Ra4 {[%emt 0:00:12]} Nd4+ {[%emt 0:01:53]} 23. cxd4 {[%emt 0:00:08]} b5 {[%emt 0:00:59]} 24. Kf1 {[%emt 0:06:53]} Qg6 {[%emt 0:01:00]} 25. Qxg6+ {[%emt 0:00:24]} fxg6 {[%emt 0:00:12]} 26. Rb4 {[%emt 0:00:24]} exd4 {[%emt 0:04:35]} 27. Rxd4 {[%emt 0:00:05]} Raa8 {[%emt 0:00:33]} 28. Ng4 {[%emt 0:00:12]} Rad8 {[%emt 0:01:04]} 29. Re4 {[%emt 0:00:43]} h5 {[%emt 0:05:59]} 30. Ne5 {[%emt 0:00:01]} Kg7 {[%emt 0:00:40]} 31. Ke2 {[%emt 0:00:04]} Rd6 {[%emt 0:00:42]} 32. f4 {[%emt 0:00:23]} Rfd8 {[%emt 0:00:20]} 33. Nf3 {[%emt 0:00:01]} R8d7 {[%emt 0:03:59]} 34. b4 {[%emt 0:00:01]} Rc6 {[%emt 0:01:16]} 35. Nd4 {[%emt 0:00:29]} Rc4 {[%emt 0:00:47]} 36. Ke3 {[%emt 0:00:17]} Kf7 {[%emt 0:00:40]} 37. g4 {[%emt 0:00:12]} hxg4 {[%emt 0:00:22]} 38. hxg4 {[%emt 0:00:00]} Re7 {[%emt 0:00:35]} 39. Rxe7+ {[%emt 0:00:18]} Kxe7 {[%emt 0:00:11]} 40. b3 {[%emt 0:00:01]} Rc1 {[%emt 0:02:25]} 41. Ke4 {[%emt 0:00:02]} Kd6 {[%emt 0:01:29]} 42. f5 {[%emt 0:00:09]} Re1+ {[%emt 0:02:57]} 43. Kf4 {[%emt 0:00:07]} Rf1+ {[%emt 0:00:57]} 44. Ke4 {[%emt 0:00:04]} gxf5+ {[%emt 0:03:13]} 45. gxf5 {[%emt 0:00:01]} c5 {[%emt 0:01:35]} 46. bxc5+ {[%emt 0:00:04]} Kxc5 {[%emt 0:00:19]} 47. Nf3 {[%emt 0:00:29]} Rh1 {[%emt 0:01:18]} 48. Ke5 {[%emt 0:00:13]} Rh8 {[%emt 0:01:12]} 49. f6 {[%emt 0:00:31]} Rf8 {[%emt 0:00:33]} 50. Ng5 {[%emt 0:00:13]} Kb4 {[%emt 0:00:54]} 51. Ne6 {[%emt 0:00:01]} Rf7 {[%emt 0:01:47]} 52. Ng5 {[%emt 0:00:01]} Rxf6 {[%emt 0:00:37]} 53. Kxf6 {[%emt 0:00:01]} Kxb3 {[%emt 0:00:25]} 54. Ne4 {[%emt 0:00:01]} a5 {[%emt 0:00:20]} 55. Ke5 {[%emt 0:00:05]} a4 {[%emt 0:00:22]} 56. Kd4 {[%emt 0:00:06]} a3 {[%emt 0:00:23]} 57. Nc5+ {[%emt 0:00:50]} Kc2 {[%emt 0:00:30]} 58. Nd3 {[%emt 0:00:06]} Kb3 {[%emt 0:00:12]} 59. Nc5+ {[%emt 0:00:01]} Kb2 {[%emt 0:00:10]} 60. Nd3+ {[%emt 0:00:03]} Kb1 {[%emt 0:00:08]} 61. Nb4 {[%emt 0:00:04]} Kb2 {[%emt 0:00:12]} 62. Kc5 {[%emt 0:00:01]} a2 {[%emt 0:00:08]} 63. Nxa2 {[%emt 0:00:00]} Kxa2 {[%emt 0:00:02]} 64. Kxb5 {[%emt 0:00:01]} 1/2-1/2

[Event "Gibraltar Challengers B 2019"]
[Site "Caleta"]
[Date "2019.01.27"]
[Round "2"]
[White "Diaz Mino, Pablo"]
[Black "Maisuradze, Nino"]
[Result "1-0"]
[ECO "A79"]
[WhiteElo "2085"]
[BlackElo "2215"]
[Annotator "ChessBase"]
[PlyCount "151"]
[EventDate "2019.01.18"]
[EventType "swiss"]
[EventCountry "GGB"]
[SourceTitle "playchess.com"]
[Source "ChessBase"]
[SourceQuality "1"]
[TimeControl "6600+10"]

1. d4 {[%emt 0:00:00]} Nf6 {[%emt 0:00:00]} 2. c4 {[%emt 0:00:08]} e6 {[%emt 0:00:09]} 3. Nf3 {[%emt 0:00:11]} c5 {[%emt 0:00:23]} 4. d5 {[%emt 0:01:43]} exd5 {[%emt 0:00:05]} 5. cxd5 {[%emt 0:00:13]} d6 {[%emt 0:00:03]} 6. Nc3 {[%emt 0:02:05]} g6 {[%emt 0:00:06]} 7. e4 {[%emt 0:01:20]} Bg7 {[%emt 0:00:09]} 8. Be2 {[%emt 0:00:21]} O-O {[%emt 0:00:34]} 9. O-O {[%emt 0:00:37]} Re8 {[%emt 0:00:09]} 10. Nd2 {[%emt 0:00:34]} Na6 {[%emt 0:03:05]} 11. f3 {[%emt 0:01:09]} Nc7 {[%emt 0:00:20]} 12. a4 {[%emt 0:00:48]} b6 {[%emt 0:05:52]} 13. Nc4 {[%emt 0:18:28]} Ba6 {[%emt 0:01:35]} 14. Bg5 {[%emt 0:03:59]} Bxc4 {[%emt 0:07:18]} 15. Bxc4 {[%emt 0:00:12]} a6 {[%emt 0:03:00]} 16. Qd3 {[%emt 0:01:46]} h6 {[%emt 0:01:59]} 17. Be3 {[%emt 0:02:54]} Nd7 {[%emt 0:01:08]} 18. Qd2 {[%emt 0:00:25]} Kh7 {[%emt 0:01:21]} 19. Rab1 {[%emt 0:00:43]} Rb8 {[%emt 0:02:57]} 20. Be2 {[%emt 0:02:03]} Qe7 {[%emt 0:08:22]} 21. Rfd1 {[%emt 0:08:01]} f5 {[%emt 0:03:40]} 22. Bf4 {[%emt 0:12:12]} Bd4+ {[%emt 0:51:49]} 23. Be3 {[%emt 0:09:26]} Bxe3+ {[%emt 0:03:01]} 24. Qxe3 {[%emt 0:00:15]} Nf6 {[%emt 0:00:51]} 25. Qf4 {[%emt 0:03:42]} fxe4 {[%emt 0:00:37]} 26. fxe4 {[%emt 0:00:39]} Qe5 {[%emt 0:01:37]} 27. Rf1 {[%emt 0:03:55]} Kg7 {[%emt 0:00:03]} 28. Qxe5 {[%emt 0:08:07]} Rxe5 {[%emt 0:00:04]} 29. Bd3 {[%emt 0:00:29]} b5 {[%emt 0:00:53]} 30. axb5 {[%emt 0:00:20]} axb5 {[%emt 0:01:31]} 31. Ra1 {[%emt 0:02:02]} Rb7 {[%emt 0:00:47]} 32. Rfe1 {[%emt 0:18:24]} b4 {[%emt 0:00:51]} 33. Ne2 {[%emt 0:00:54]} Nxe4 {[%emt 0:01:36]} 34. Nf4 {[%emt 0:00:21]} Nf6 {[%emt 0:02:02]} 35. Rxe5 {[%emt 0:05:09]} dxe5 {[%emt 0:00:01]} 36. Ne6+ {[%emt 0:00:05]} Nxe6 37. dxe6 {[%emt 0:00:01]} e4 {[%emt 0:01:57]} 38. Bc4 {[%emt 0:00:12]} Rc7 {[%emt 0:01:46]} 39. h3 {[%emt 0:00:06]} h5 {[%emt 0:04:24]} 40. Kf2 {[%emt 0:00:08]} Kf8 {[%emt 0:00:12]} 41. Ke3 {[%emt 0:00:42]} Ke7 {[%emt 0:00:03]} 42. Ra6 {[%emt 0:00:37]} g5 {[%emt 0:00:12]} 43. Ra8 {[%emt 0:00:17]} h4 {[%emt 0:00:21]} 44. Ra6 {[%emt 0:00:26]} Ne8 {[%emt 0:00:05]} 45. Kxe4 {[%emt 0:00:25]} Nd6+ {[%emt 0:00:03]} 46. Kd5 {[%emt 0:00:17]} Nf5 {[%emt 0:00:15]} 47. Ke4 {[%emt 0:00:29]} Nd4 {[%emt 0:00:11]} 48. Ra8 {[%emt 0:00:06]} Nxe6 {[%emt 0:00:09]} 49. Rg8 {[%emt 0:00:08]} Nd4 {[%emt 0:00:19]} 50. Rxg5 {[%emt 0:00:07]} Kf6 {[%emt 0:00:04]} 51. Rh5 {[%emt 0:00:04]} Re7+ {[%emt 0:00:09]} 52. Kd5 {[%emt 0:00:07]} Nf5 {[%emt 0:00:18]} 53. Kxc5 {[%emt 0:00:08]} Rc7+ {[%emt 0:00:10]} 54. Kxb4 {[%emt 0:00:06]} Ne3 {[%emt 0:00:05]} 55. Rxh4 {[%emt 0:00:03]} Nxg2 {[%emt 0:00:06]} 56. Rh6+ {[%emt 0:00:22]} Kg5 {[%emt 0:00:05]} 57. Rh8 {[%emt 0:00:14]} Ne3 {[%emt 0:00:11]} 58. h4+ {[%emt 0:00:01]} Kf6 {[%emt 0:00:08]} 59. b3 {[%emt 0:00:03]} Kg7 {[%emt 0:00:11]} 60. Re8 {[%emt 0:00:07]} Nf5 {[%emt 0:00:13]} 61. Rg8+ {[%emt 0:00:15]} Kh7 {[%emt 0:00:07]} 62. Rg5 {[%emt 0:00:04]} Ng7 {[%emt 0:00:25]} 63. Bd3+ {[%emt 0:00:04]} Kh8 {[%emt 0:00:03]} 64. Rc5 {[%emt 0:00:02]} Rxc5 {[%emt 0:00:17]} 65. Kxc5 {[%emt 0:00:03]} Ne6+ {[%emt 0:00:02]} 66. Kd6 {[%emt 0:00:30]} Nd4 {[%emt 0:00:13]} 67. b4 {[%emt 0:00:02]} Kg7 {[%emt 0:00:03]} 68. Kd5 {[%emt 0:00:03]} Nb3 {[%emt 0:00:08]} 69. b5 {[%emt 0:00:06]} Na5 {[%emt 0:00:11]} 70. Be4 {[%emt 0:00:11]} Nb7 {[%emt 0:00:20]} 71. Kc6 {[%emt 0:00:06]} Na5+ {[%emt 0:00:12]} 72. Kc5 {[%emt 0:00:04]} Nb3+ {[%emt 0:00:06]} 73. Kb4 {[%emt 0:00:10]} Nd4 {[%emt 0:00:16]} 74. b6 {[%emt 0:00:08]} Ne6 {[%emt 0:00:03]} 75. b7 {[%emt 0:00:13]} Nc7 {[%emt 0:00:02]} 76. Ka5 {[%emt 0:00:10]} 1-0